fUST/lending_fUST_20260518
["ID","MTS","AMOUNT","RATE_DAILY","PERIOD"]
[422558011,1779078641000,-1077.39033157,0.00010453,2]
[422558013,1779078641000,-2120.24758729,0.00010558,2]
[422558012,1779078641000,-850.35238284,0.00010558,2]
[422558030,1779078644000,-7911.23676657,0.00010558,2]
[422558063,1779078647000,-500.0,0.00010958,2]
[422558062,1779078647000,-526.99,0.00010958,2]
[422558066,1779078647000,-500.0,0.00010958,2]
[422558065,1779078647000,-500.0,0.00010958,2]
[422558064,1779078647000,-588.85118439,0.00010958,2]
[422558067,1779078647000,-1302.69,0.00010958,2]
[422558069,1779078647000,-500.0,0.00010958,2]
[422558068,1779078647000,-500.0,0.00010958,2]
[422558075,1779078647000,-500.0,0.00010958,2]
[422558072,1779078647000,-501.33223102,0.00010958,2]
[422558071,1779078647000,-500.0,0.00010958,2]
[422558074,1779078647000,-375.48992556,0.00010958,2]
[422558073,1779078647000,-502.13511547,0.00010958,2]
[422558076,1779078647000,-501.77397764,0.00010958,2]
[422558077,1779078647000,-500.0,0.00010958,2]
[422558079,1779078647000,-469.84594728,0.00010958,2]
[422558070,1779078647000,-500.0,0.00010958,2]
[422558060,1779078647000,-536.56,0.00010958,2]
[422558051,1779078647000,-152.0,0.00010859,2]
[422558058,1779078647000,-500.0,0.00010958,2]
[422558080,1779078647000,-843.25,0.00010958,2]
[422558041,1779078647000,-9992.92028562,0.00010558,2]
[422558044,1779078647000,-474.71008333,0.00010647,2]
[422558043,1779078647000,-122030.24976242,0.00010558,2]
[422558045,1779078647000,-185.0,0.00010747,2]
[422558047,1779078647000,-160.0,0.00010752,2]
[422558046,1779078647000,-161.68513202,0.00010752,2]
[422558049,1779078647000,-152.0,0.00010818,7]
[422558059,1779078647000,-501.36587182,0.00010958,2]
[422558056,1779078647000,-500.0,0.00010958,2]
[422558055,1779078647000,-500.0,0.00010958,2]
[422558048,1779078647000,-178.37424208,0.0001078,2]
[422558057,1779078647000,-500.0,0.00010958,2]
[422558053,1779078647000,-287.603,0.00010878,2]
[422558052,1779078647000,-177.4136158,0.00010869,2]
[422558054,1779078647000,-10032.33658518,0.000109,2]
[422558050,1779078647000,-152.0,0.00010818,7]
[422558061,1779078647000,-500.0,0.00010958,2]
[422558081,1779078647000,-500.0,0.00010958,2]
[422558085,1779078647000,-501.50506513,0.00010958,2]
[422558082,1779078647000,-1106.01,0.00010958,2]
[422558103,1779078647000,-500.0,0.00010958,2]
[422558106,1779078647000,-500.0,0.00010958,2]
[422558107,1779078647000,-500.0,0.00010958,2]
[422558108,1779078647000,-500.0,0.00010958,2]
[422558109,1779078647000,-503.54691461,0.00010958,2]
[422558111,1779078647000,-500.0,0.00010958,2]
[422558112,1779078647000,-500.0,0.00010958,2]
[422558113,1779078647000,-500.0,0.00010958,2]
[422558110,1779078647000,-670.03,0.00010958,2]
[422558116,1779078647000,-501.7831665,0.00010958,2]
[422558119,1779078647000,-500.0,0.00010958,2]
[422558118,1779078647000,-721.74,0.00010958,2]
[422558117,1779078647000,-500.0,0.00010958,2]
[422558114,1779078647000,-2011.33,0.00010958,2]
[422558115,1779078647000,-500.0,0.00010958,2]
[422558121,1779078647000,-500.0,0.00010958,2]
[422558078,1779078647000,-500.0,0.00010958,2]
[422558099,1779078647000,-500.0,0.00010958,2]
[422558101,1779078647000,-741.85,0.00010958,2]
[422558120,1779078647000,-500.0,0.00010958,2]
[422558105,1779078647000,-500.0,0.00010958,2]
[422558104,1779078647000,-500.0,0.00010958,2]
[422558083,1779078647000,-500.0,0.00010958,2]
[422558087,1779078647000,-855.37,0.00010958,2]
[422558086,1779078647000,-500.57989358,0.00010958,2]
[422558093,1779078647000,-500.0,0.00010958,2]
[422558092,1779078647000,-500.0,0.00010958,2]
[422558088,1779078647000,-500.75136092,0.00010958,2]
[422558091,1779078647000,-500.0,0.00010958,2]
[422558090,1779078647000,-500.0,0.00010958,2]
[422558084,1779078647000,-500.0,0.00010958,2]
[422558094,1779078647000,-501.90391921,0.00010958,2]
[422558095,1779078647000,-1390.88,0.00010958,2]
[422558096,1779078647000,-755.38,0.00010958,2]
[422558097,1779078647000,-224.86389075,0.00010958,2]
[422558098,1779078647000,-2208.51,0.00010958,2]
[422558100,1779078647000,-500.0,0.00010958,2]
[422558102,1779078647000,-501.65594665,0.00010958,2]
[422558089,1779078647000,-500.0,0.00010958,2]
[422558133,1779078648000,-500.0,0.00010958,2]
[422558122,1779078648000,-800.59,0.00010958,2]
[422558126,1779078648000,-1204.74,0.00010958,2]
[422558123,1779078648000,-500.88722399,0.00010958,2]
[422558125,1779078648000,-750.23,0.00010958,2]
[422558127,1779078648000,-679.64,0.00010958,2]
[422558135,1779078648000,-307.708,0.00010958,2]
[422558132,1779078648000,-680.51,0.00010958,2]
[422558130,1779078648000,-910.31,0.00010958,2]
[422558129,1779078648000,-2297.22,0.00010958,2]
[422558131,1779078648000,-500.0,0.00010958,2]
[422558128,1779078648000,-500.94315483,0.00010958,2]
[422558134,1779078648000,-427.1363989,0.00010958,2]
[422558124,1779078648000,-500.0,0.00010958,2]
[422558307,1779079058000,-1304.02635918,9.751e-05,2]
[422558353,1779079832000,-5000.0,7.684e-05,2]
[422558355,1779079832000,-1060.96679558,7.762e-05,2]
[422558366,1779079832000,-378.99902719,8e-05,2]
[422558370,1779079832000,-400.499995,8e-05,4]
[422558368,1779079832000,-3206.19855548,8e-05,4]
[422558359,1779079832000,-300.0,7.999e-05,2]
[422558357,1779079832000,-300.0,7.999e-05,2]
[422558361,1779079832000,-300.0,7.999e-05,2]
[422558364,1779079832000,-300.0,7.999e-05,2]
[422558363,1779079832000,-1200.0,7.999e-05,2]
[422558512,1779079841000,-456.513297,0.00010904,2]
[422558509,1779079841000,-443.0,0.00010887,2]
[422558510,1779079841000,-9461.63359656,0.000109,2]
[422558511,1779079841000,-151.0,0.00010904,2]
[422558508,1779079841000,-185.0,0.00010887,2]
[422558505,1779079841000,-178.37424209,0.0001078,2]
[422558507,1779079841000,-1845.71510105,0.00010858,2]
[422558515,1779079841000,-500.0,0.00010958,2]
[422558506,1779079841000,-152.0,0.00010811,7]
[422558503,1779079841000,-1845.71510105,0.00010775,2]
[422558514,1779079841000,-197.0,0.0001094,2]
[422558513,1779079841000,-160.16,0.00010935,2]
[422558516,1779079841000,-1927.52,0.00010958,2]
[422558520,1779079841000,-767.23,0.00010958,2]
[422558518,1779079841000,-324.06106903,0.00010958,2]
[422558517,1779079841000,-691.66,0.00010958,2]
[422558523,1779079841000,-1154.54,0.00010958,2]
[422558527,1779079841000,-1000.0,0.00010958,2]
[422558521,1779079841000,-651.33,0.00010958,2]
[422558525,1779079841000,-500.0,0.00010958,2]
[422558519,1779079841000,-500.0,0.00010958,2]
[422558526,1779079841000,-500.0,0.00010958,2]
[422558522,1779079841000,-2201.5,0.00010958,2]
[422558528,1779079841000,-500.0,0.00010958,2]
[422558524,1779079841000,-652.15,0.00010958,2]
[422558541,1779079841000,-500.87216938,0.00010958,2]
[422558529,1779079841000,-386.95231413,0.00010958,2]
[422558504,1779079841000,-297.31955893,0.0001078,21]
[422558500,1779079841000,-1845.71510105,0.00010608,2]
[422558502,1779079841000,-1845.71510105,0.00010692,2]
[422558474,1779079841000,-12829.38106496,8e-05,4]
[422558473,1779079841000,-3577.7963158,8e-05,4]
[422558475,1779079841000,-13685.16487145,9.9e-05,2]
[422558477,1779079841000,-2687.58851647,9.955e-05,2]
[422558479,1779079841000,-500.0,9.958e-05,2]
[422558481,1779079841000,-320.698,9.958e-05,2]
[422558478,1779079841000,-500.0,9.958e-05,2]
[422558485,1779079841000,-22606.95377211,0.0001,4]
[422558483,1779079841000,-377.76488958,9.999e-05,2]
[422558482,1779079841000,-161.96474189,9.999e-05,2]
[422558486,1779079841000,-799.63539084,0.000102,2]
[422558484,1779079841000,-447.21885208,0.0001,2]
[422558499,1779079841000,-1845.71510106,0.00010525,2]
[422558476,1779079841000,-1221.72497795,9.955e-05,2]
[422558480,1779079841000,-280.66,9.958e-05,2]
[422558487,1779079841000,-1774.07989763,0.000102,2]
[422558490,1779079841000,-1926.55947892,0.000102,2]
[422558492,1779079841000,-386.42254512,0.000102,2]
[422558493,1779079841000,-161.68513202,0.00010248,2]
[422558494,1779079841000,-160.0,0.00010248,2]
[422558491,1779079841000,-1954.24564231,0.000102,2]
[422558497,1779079841000,-10329.66127718,0.00010358,2]
[422558501,1779079841000,-1591.29374813,0.00010625,21]
[422558496,1779079841000,-129398.06751126,0.00010358,2]
[422558498,1779079841000,-1221.72497795,0.00010433,2]
[422558495,1779079841000,-233.46572509,0.00010357,2]
[422558489,1779079841000,-2134.41138706,0.000102,2]
[422558531,1779079841000,-500.0,0.00010958,2]
[422558550,1779079841000,-500.0,0.00010958,2]
[422558533,1779079841000,-500.0,0.00010958,2]
[422558568,1779079841000,-500.0,0.00010958,2]
[422558578,1779079841000,-491.18288749,0.00010958,2]
[422558579,1779079841000,-1121.2,0.00010958,2]
[422558569,1779079841000,-500.0,0.00010958,2]
[422558570,1779079841000,-207.84910529,0.00010958,2]
[422558574,1779079841000,-500.0,0.00010958,2]
[422558571,1779079841000,-603.96,0.00010958,2]
[422558572,1779079841000,-500.0,0.00010958,2]
[422558575,1779079841000,-501.03371215,0.00010958,2]
[422558577,1779079841000,-2247.02,0.00010958,2]
[422558573,1779079841000,-500.0,0.00010958,2]
[422558576,1779079841000,-2223.69,0.00010958,2]
[422558567,1779079841000,-287.08773257,0.00010958,2]
[422558592,1779079841000,-502.06731598,0.00010958,2]
[422558586,1779079841000,-500.86031082,0.00010958,2]
[422558593,1779079841000,-500.0,0.00010958,2]
[422558585,1779079841000,-500.0,0.00010958,2]
[422558583,1779079841000,-501.20991764,0.00010958,2]
[422558591,1779079841000,-500.91586533,0.00010958,2]
[422558584,1779079841000,-501.3547822,0.00010958,2]
[422558582,1779079841000,-501.25,0.00010958,2]
[422558587,1779079841000,-650.79,0.00010958,2]
[422558588,1779079841000,-500.0,0.00010958,2]
[422558590,1779079841000,-500.0,0.00010958,2]
[422558589,1779079841000,-500.0,0.00010958,2]
[422558534,1779079841000,-500.0,0.00010958,2]
[422558580,1779079841000,-416.31828656,0.00010958,2]
[422558564,1779079841000,-627.12,0.00010958,2]
[422558581,1779079841000,-697.87,0.00010958,2]
[422558559,1779079841000,-502.65326402,0.00010958,2]
[422558563,1779079841000,-500.0,0.00010958,2]
[422558543,1779079841000,-500.0,0.00010958,2]
[422558535,1779079841000,-500.0,0.00010958,2]
[422558542,1779079841000,-795.93,0.00010958,2]
[422558537,1779079841000,-500.0,0.00010958,2]
[422558538,1779079841000,-995.58,0.00010958,2]
[422558540,1779079841000,-500.0,0.00010958,2]
[422558544,1779079841000,-501.3591837,0.00010958,2]
[422558536,1779079841000,-500.0,0.00010958,2]
[422558555,1779079841000,-669.0,0.00010958,2]
[422558554,1779079841000,-500.0,0.00010958,2]
[422558556,1779079841000,-339.70384697,0.00010958,2]
[422558557,1779079841000,-846.77,0.00010958,2]
[422558548,1779079841000,-508.01601313,0.00010958,2]
[422558539,1779079841000,-661.53,0.00010958,2]
[422558551,1779079841000,-500.0,0.00010958,2]
[422558565,1779079841000,-552.8672424,0.00010958,2]
[422558562,1779079841000,-500.0,0.00010958,2]
[422558566,1779079841000,-500.0,0.00010958,2]
[422558561,1779079841000,-219.70035329,0.00010958,2]
[422558558,1779079841000,-743.38,0.00010958,2]
[422558553,1779079841000,-500.0,0.00010958,2]
[422558560,1779079841000,-2025.19,0.00010958,2]
[422558547,1779079841000,-500.0,0.00010958,2]
[422558549,1779079841000,-448.02155403,0.00010958,2]
[422558545,1779079841000,-711.18,0.00010958,2]
[422558552,1779079841000,-500.0,0.00010958,2]
[422558546,1779079841000,-500.0,0.00010958,2]
[422558636,1779079842000,-4220.76,0.00010958,2]
[422558649,1779079842000,-500.0,0.00010958,2]
[422558648,1779079842000,-1701.71,0.00010958,2]
[422558647,1779079842000,-2333.97,0.00010958,2]
[422558637,1779079842000,-500.0,0.00010958,2]
[422558632,1779079842000,-500.63785134,0.00010958,2]
[422558628,1779079842000,-500.0,0.00010958,2]
[422558629,1779079842000,-779.63,0.00010958,2]
[422558627,1779079842000,-500.0,0.00010958,2]
[422558633,1779079842000,-648.08,0.00010958,2]
[422558631,1779079842000,-1075.39,0.00010958,2]
[422558630,1779079842000,-500.0,0.00010958,2]
[422558635,1779079842000,-815.14,0.00010958,2]
[422558646,1779079842000,-1402.71,0.00010958,2]
[422558655,1779079842000,-835.02,0.00010958,2]
[422558639,1779079842000,-1409.63,0.00010958,2]
[422558643,1779079842000,-358.58230607,0.00010958,2]
[422558644,1779079842000,-564.09,0.00010958,2]
[422558645,1779079842000,-669.38,0.00010958,2]
[422558640,1779079842000,-525.59,0.00010958,2]
[422558641,1779079842000,-500.0,0.00010958,2]
[422558642,1779079842000,-500.0,0.00010958,2]
[422558651,1779079842000,-500.0,0.00010958,2]
[422558662,1779079842000,-629.86,0.00010958,2]
[422558661,1779079842000,-392.15551763,0.00010958,2]
[422558652,1779079842000,-172.14029152,0.00010958,2]
[422558650,1779079842000,-770.18,0.00010958,2]
[422558653,1779079842000,-765.28,0.00010958,2]
[422558626,1779079842000,-500.0,0.00010958,2]
[422558638,1779079842000,-1259.21,0.00010958,2]
[422558634,1779079842000,-500.0,0.00010958,2]
[422558598,1779079842000,-296.8641205,0.00010958,2]
[422558622,1779079842000,-500.0,0.00010958,2]
[422558594,1779079842000,-965.55,0.00010958,2]
[422558596,1779079842000,-232.62984432,0.00010958,2]
[422558658,1779079842000,-690.17,0.00010958,2]
[422558601,1779079842000,-1465.21,0.00010958,2]
[422558607,1779079842000,-500.0,0.00010958,2]
[422558603,1779079842000,-755.55,0.00010958,2]
[422558604,1779079842000,-500.0,0.00010958,2]
[422558602,1779079842000,-1012.71,0.00010958,2]
[422558597,1779079842000,-3145.89,0.00010958,2]
[422558599,1779079842000,-314.08314423,0.00010958,2]
[422558605,1779079842000,-500.0,0.00010958,2]
[422558600,1779079842000,-500.0,0.00010958,2]
[422558606,1779079842000,-500.0,0.00010958,2]
[422558595,1779079842000,-500.0,0.00010958,2]
[422558625,1779079842000,-2313.74,0.00010958,2]
[422558610,1779079842000,-500.0,0.00010958,2]
[422558608,1779079842000,-718.97,0.00010958,2]
[422558611,1779079842000,-4267.34,0.00010958,2]
[422558617,1779079842000,-904.71,0.00010958,2]
[422558612,1779079842000,-500.0,0.00010958,2]
[422558616,1779079842000,-1420.54,0.00010958,2]
[422558615,1779079842000,-687.67,0.00010958,2]
[422558620,1779079842000,-500.0,0.00010958,2]
[422558619,1779079842000,-500.0,0.00010958,2]
[422558621,1779079842000,-1590.68,0.00010958,2]
[422558614,1779079842000,-500.0,0.00010958,2]
[422558618,1779079842000,-917.18,0.00010958,2]
[422558613,1779079842000,-872.38,0.00010958,2]
[422558623,1779079842000,-859.88,0.00010958,2]
[422558624,1779079842000,-500.0,0.00010958,2]
[422558609,1779079842000,-500.0,0.00010958,2]
[422558657,1779079842000,-580.92,0.00010958,2]
[422558654,1779079842000,-500.0,0.00010958,2]
[422558723,1779079842000,-11377.46,0.00010958,2]
[422558696,1779079842000,-500.0,0.00010958,2]
[422558694,1779079842000,-500.0,0.00010958,2]
[422558699,1779079842000,-461.58360993,0.00010958,2]
[422558702,1779079842000,-500.0,0.00010958,2]
[422558704,1779079842000,-2307.97,0.00010958,2]
[422558700,1779079842000,-4112.05,0.00010958,2]
[422558701,1779079842000,-3383.77,0.00010958,2]
[422558697,1779079842000,-500.0,0.00010958,2]
[422558703,1779079842000,-505.04,0.00010958,2]
[422558698,1779079842000,-500.0,0.00010958,2]
[422558705,1779079842000,-500.0,0.00010958,2]
[422558707,1779079842000,-500.0,0.00010958,2]
[422558708,1779079842000,-500.0,0.00010958,2]
[422558710,1779079842000,-4872.51,0.00010958,2]
[422558695,1779079842000,-500.0,0.00010958,2]
[422558711,1779079842000,-500.0,0.00010958,2]
[422558712,1779079842000,-500.0,0.00010958,2]
[422558713,1779079842000,-500.0,0.00010958,2]
[422558715,1779079842000,-500.0,0.00010958,2]
[422558725,1779079842000,-500.0,0.00010958,2]
[422558724,1779079842000,-1585.16,0.00010958,2]
[422558716,1779079842000,-2541.28,0.00010958,2]
[422558714,1779079842000,-566.77,0.00010958,2]
[422558718,1779079842000,-500.0,0.00010958,2]
[422558719,1779079842000,-500.0,0.00010958,2]
[422558721,1779079842000,-500.0,0.00010958,2]
[422558717,1779079842000,-1248.41,0.00010958,2]
[422558659,1779079842000,-1212.06,0.00010958,2]
[422558722,1779079842000,-1063.02,0.00010958,2]
[422558720,1779079842000,-500.0,0.00010958,2]
[422558709,1779079842000,-500.0,0.00010958,2]
[422558692,1779079842000,-1014.93,0.00010958,2]
[422558706,1779079842000,-500.0,0.00010958,2]
[422558691,1779079842000,-500.0,0.00010958,2]
[422558656,1779079842000,-500.95493332,0.00010958,2]
[422558693,1779079842000,-500.87015989,0.00010958,2]
[422558663,1779079842000,-1530.23,0.00010958,2]
[422558665,1779079842000,-1554.01,0.00010958,2]
[422558667,1779079842000,-2698.88,0.00010958,2]
[422558666,1779079842000,-4455.24,0.00010958,2]
[422558668,1779079842000,-500.0,0.00010958,2]
[422558664,1779079842000,-1180.19,0.00010958,2]
[422558674,1779079842000,-500.0,0.00010958,2]
[422558676,1779079842000,-500.0,0.00010958,2]
[422558670,1779079842000,-500.0,0.00010958,2]
[422558671,1779079842000,-811.94,0.00010958,2]
[422558675,1779079842000,-500.0,0.00010958,2]
[422558672,1779079842000,-584.49,0.00010958,2]
[422558669,1779079842000,-750.27,0.00010958,2]
[422558660,1779079842000,-500.0,0.00010958,2]
[422558678,1779079842000,-4601.37,0.00010958,2]
[422558673,1779079842000,-500.0,0.00010958,2]
[422558683,1779079842000,-1090.22,0.00010958,2]
[422558684,1779079842000,-500.0,0.00010958,2]
[422558686,1779079842000,-500.0,0.00010958,2]
[422558685,1779079842000,-514.21,0.00010958,2]
[422558682,1779079842000,-1706.06,0.00010958,2]
[422558677,1779079842000,-529.08,0.00010958,2]
[422558687,1779079842000,-629.62553743,0.00010958,2]
[422558681,1779079842000,-656.01,0.00010958,2]
[422558679,1779079842000,-500.0,0.00010958,2]
[422558689,1779079842000,-500.0,0.00010958,2]
[422558690,1779079842000,-500.0,0.00010958,2]
[422558688,1779079842000,-1620.54,0.00010958,2]
[422558680,1779079842000,-500.0,0.00010958,2]
[422558772,1779079843000,-500.0,0.00010958,2]
[422558768,1779079843000,-500.0,0.00010958,2]
[422558765,1779079843000,-3611.96587896,0.00010958,2]
[422558766,1779079843000,-500.90614684,0.00010958,2]
[422558777,1779079843000,-13861.84,0.00010958,2]
[422558767,1779079843000,-500.58393458,0.00010958,2]
[422558762,1779079843000,-500.0,0.00010958,2]
[422558759,1779079843000,-690.60371488,0.00010958,2]
[422558761,1779079843000,-479.06935852,0.00010958,2]
[422558760,1779079843000,-1425.87628512,0.00010958,2]
[422558770,1779079843000,-7895.38,0.00010958,2]
[422558776,1779079843000,-2970.96,0.00010958,2]
[422558771,1779079843000,-500.0,0.00010958,2]
[422558789,1779079843000,-500.0,0.00010958,2]
[422558773,1779079843000,-3927.11,0.00010958,2]
[422558769,1779079843000,-989.76,0.00010958,2]
[422558774,1779079843000,-3597.35,0.00010958,2]
[422558778,1779079843000,-916.87,0.00010958,2]
[422558779,1779079843000,-500.0,0.00010958,2]
[422558782,1779079843000,-500.0,0.00010958,2]
[422558781,1779079843000,-723.91,0.00010958,2]
[422558786,1779079843000,-615.43,0.00010958,2]
[422558783,1779079843000,-3918.06,0.00010958,2]
[422558785,1779079843000,-500.0,0.00010958,2]
[422558780,1779079843000,-500.0,0.00010958,2]
[422558784,1779079843000,-9571.03,0.00010958,2]
[422558764,1779079843000,-286.78412104,0.00010958,2]
[422558775,1779079843000,-500.0,0.00010958,2]
[422558756,1779079843000,-500.0,0.00010958,2]
[422558787,1779079843000,-4078.41,0.00010958,2]
[422558763,1779079843000,-500.0,0.00010958,2]
[422558726,1779079843000,-385.013608,0.00010958,2]
[422558727,1779079843000,-2347.36,0.00010958,2]
[422558728,1779079843000,-5000.16,0.00010958,2]
[422558729,1779079843000,-2318.89,0.00010958,2]
[422558732,1779079843000,-500.0,0.00010958,2]
[422558736,1779079843000,-1033.64,0.00010958,2]
[422558731,1779079843000,-3920.85,0.00010958,2]
[422558739,1779079843000,-146.78007459,0.00010958,2]
[422558735,1779079843000,-501.01014753,0.00010958,2]
[422558730,1779079843000,-500.0,0.00010958,2]
[422558737,1779079843000,-4395.76992541,0.00010958,2]
[422558733,1779079843000,-500.0,0.00010958,2]
[422558734,1779079843000,-500.0,0.00010958,2]
[422558758,1779079843000,-3325.05,0.00010958,2]
[422558741,1779079843000,-500.0,0.00010958,2]
[422558753,1779079843000,-1269.17,0.00010958,2]
[422558751,1779079843000,-500.0,0.00010958,2]
[422558743,1779079843000,-703.96,0.00010958,2]
[422558740,1779079843000,-500.0,0.00010958,2]
[422558750,1779079843000,-500.0,0.00010958,2]
[422558749,1779079843000,-1059.93,0.00010958,2]
[422558746,1779079843000,-3607.26,0.00010958,2]
[422558748,1779079843000,-4537.46,0.00010958,2]
[422558747,1779079843000,-1332.93,0.00010958,2]
[422558745,1779079843000,-489.72706525,0.00010958,2]
[422558757,1779079843000,-819.73,0.00010958,2]
[422558754,1779079843000,-1359.39,0.00010958,2]
[422558755,1779079843000,-822.0,0.00010958,2]
[422558752,1779079843000,-491.94595039,0.00010958,2]
[422558788,1779079843000,-500.0,0.00010958,2]
[422558796,1779079843000,-947.6,0.00010958,2]
[422558865,1779079843000,-500.0,0.00010958,2]
[422558838,1779079843000,-500.0,0.00010958,8]
[422558836,1779079843000,-500.99117416,0.00010958,2]
[422558833,1779079843000,-500.0,0.00010958,5]
[422558842,1779079843000,-500.0,0.00010958,12]
[422558840,1779079843000,-500.0,0.00010958,10]
[422558839,1779079843000,-500.0,0.00010958,9]
[422558841,1779079843000,-500.0,0.00010958,11]
[422558849,1779079843000,-2626.33,0.00010958,2]
[422558846,1779079843000,-525.67645992,0.00010958,15]
[422558847,1779079843000,-500.0,0.00010958,2]
[422558851,1779079843000,-1834.97,0.00010958,2]
[422558854,1779079843000,-500.0,0.00010958,2]
[422558848,1779079843000,-523.06,0.00010958,2]
[422558850,1779079843000,-500.0,0.00010958,2]
[422558856,1779079843000,-1548.96,0.00010958,2]
[422558853,1779079843000,-532.57,0.00010958,2]
[422558852,1779079843000,-500.1640785,0.00010958,2]
[422558857,1779079843000,-500.0,0.00010958,2]
[422558858,1779079843000,-9148.72,0.00010958,2]
[422558859,1779079843000,-1291.47,0.00010958,2]
[422558866,1779079843000,-500.0,0.00010958,2]
[422558860,1779079843000,-3790.91,0.00010958,2]
[422558867,1779079843000,-616.39,0.00010958,2]
[422558862,1779079843000,-3318.91,0.00010958,2]
[422558861,1779079843000,-642.11,0.00010958,2]
[422558864,1779079843000,-9390.73,0.00010958,2]
[422558791,1779079843000,-500.0,0.00010958,2]
[422558843,1779079843000,-500.0,0.00010958,13]
[422558844,1779079843000,-500.85071183,0.00010958,2]
[422558855,1779079843000,-500.0,0.00010958,2]
[422558835,1779079843000,-500.0,0.00010958,7]
[422558845,1779079843000,-500.0,0.00010958,14]
[422558805,1779079843000,-501.39288028,0.00010958,2]
[422558801,1779079843000,-63494.09,0.00010958,2]
[422558794,1779079843000,-500.0,0.00010958,2]
[422558803,1779079843000,-500.0,0.00010958,2]
[422558792,1779079843000,-1692.81,0.00010958,2]
[422558795,1779079843000,-2454.43,0.00010958,2]
[422558793,1779079843000,-8179.92,0.00010958,2]
[422558797,1779079843000,-500.0,0.00010958,2]
[422558799,1779079843000,-964.27,0.00010958,2]
[422558800,1779079843000,-500.0,0.00010958,2]
[422558798,1779079843000,-2865.87,0.00010958,2]
[422558809,1779079843000,-5326.97,0.00010958,2]
[422558821,1779079843000,-12279.68,0.00010958,2]
[422558790,1779079843000,-500.0,0.00010958,2]
[422558817,1779079843000,-500.0,0.00010958,2]
[422558811,1779079843000,-540.37,0.00010958,2]
[422558832,1779079843000,-500.0,0.00010958,4]
[422558831,1779079843000,-500.0,0.00010958,3]
[422558827,1779079843000,-500.0,0.00010958,2]
[422558815,1779079843000,-500.0,0.00010958,2]
[422558829,1779079843000,-500.0,0.00010958,2]
[422558834,1779079843000,-500.0,0.00010958,6]
[422558824,1779079843000,-426.77722476,0.00010958,2]
[422558813,1779079843000,-500.0,0.00010958,2]
[422558819,1779079843000,-5455.64,0.00010958,2]
[422558807,1779079843000,-501.08373122,0.00010958,2]
[422558823,1779079843000,-710.94,0.00010958,2]
[422558825,1779079843000,-501.39118968,0.00010958,2]
[422558912,1779079844000,-216.671057,0.00010959,2]
[422558906,1779079844000,-216.671057,0.00010959,2]
[422558902,1779079844000,-193.347838,0.00010959,2]
[422558898,1779079844000,-193.347835,0.00010959,2]
[422558901,1779079844000,-193.347835,0.00010959,2]
[422558905,1779079844000,-254.73578,0.00010959,2]
[422558903,1779079844000,-254.73578,0.00010959,2]
[422558900,1779079844000,-193.347835,0.00010959,2]
[422558910,1779079844000,-254.73578,0.00010959,2]
[422558899,1779079844000,-193.347835,0.00010959,2]
[422558922,1779079844000,-216.671057,0.00010959,2]
[422558904,1779079844000,-254.73578,0.00010959,2]
[422558923,1779079844000,-254.73578,0.00010959,2]
[422558918,1779079844000,-216.671057,0.00010959,2]
[422558915,1779079844000,-254.73578,0.00010959,2]
[422558914,1779079844000,-216.671057,0.00010959,2]
[422558921,1779079844000,-254.73578,0.00010959,2]
[422558916,1779079844000,-216.671057,0.00010959,2]